[Event "*** Titled Tuesday Blitz"]
[Site "Chess.com"]
[Date "2020.04.28"]
[Round "9"]
[White "talman67"]
[Black "TheNomNomFactor"]
[Result "1-0"]
[WhiteElo "2567"]
[BlackElo "2406"]
[TimeControl "180+1"]
[EndTime "11:45:59 PDT"]
[Termination "talman67 won by checkmate"]

1. e4 {[%clk 0:03:00.9]} 1... e5 {[%clk 0:01:32.4]} 2. Nf3 {[%clk 0:03:00.1]}
2... Nc6 {[%clk 0:01:32.5]} 3. Bb5 {[%clk 0:02:59.7]} 3... a6 {[%clk 0:01:31.2]}
4. Ba4 {[%clk 0:03:00.1]} 4... d6 {[%clk 0:01:28.3]} 5. O-O {[%clk 0:02:59.2]}
5... Bg4 {[%clk 0:01:26.9]} 6. h3 {[%clk 0:02:45.6]} 6... h5 {[%clk 0:01:26.5]}
7. d4 {[%clk 0:02:40.2]} 7... b5 {[%clk 0:01:21.5]} 8. Bb3 {[%clk 0:02:39.6]}
8... Nxd4 {[%clk 0:01:21.5]} 9. hxg4 {[%clk 0:02:38]} 9... Nxb3 {[%clk
0:01:21.8]} 10. axb3 {[%clk 0:02:38.6]} 10... hxg4 {[%clk 0:01:22.4]} 11. Ng5
{[%clk 0:02:11.7]} 11... Qd7 {[%clk 0:01:22.6]} 12. Qd3 {[%clk 0:02:05.8]} 12...
f6 {[%clk 0:01:19.3]} 13. Ne6 {[%clk 0:02:05.8]} 13... Qxe6 {[%clk 0:01:18.6]}
14. Rxa6 {[%clk 0:02:06.3]} 14... Rxa6 {[%clk 0:01:15.3]} 15. Qxb5+ {[%clk
0:02:06.8]} 15... Kd8 {[%clk 0:00:54.4]} 16. Qxa6 {[%clk 0:02:06.4]} 16... Qf7
{[%clk 0:00:55]} 17. f3 {[%clk 0:01:04.2]} 17... g3 {[%clk 0:00:55.1]} 18. Rd1
{[%clk 0:00:38.6]} 18... Qh5 {[%clk 0:00:54.3]} 19. Kf1 {[%clk 0:00:37.6]} 19...
Qh1+ {[%clk 0:00:53.6]} 20. Ke2 {[%clk 0:00:38]} 20... Qxg2+ {[%clk 0:00:54.5]}
21. Ke3 {[%clk 0:00:33.6]} 21... Qf2+ {[%clk 0:00:53.9]} 22. Kd3 {[%clk
0:00:33.1]} 22... Qxf3+ {[%clk 0:00:54.3]} 23. Kc4 {[%clk 0:00:29.2]} 23... Qxd1
{[%clk 0:00:52.1]} 24. Qa8+ {[%clk 0:00:26.8]} 24... Ke7 {[%clk 0:00:48.7]} 25.
Nc3 {[%clk 0:00:27.7]} 25... Qd4+ {[%clk 0:00:36.8]} 26. Kb5 {[%clk 0:00:24]}
26... Kf7 {[%clk 0:00:28.7]} 27. Kc6 {[%clk 0:00:17.7]} 27... Ne7+ {[%clk
0:00:19.8]} 28. Kd7 {[%clk 0:00:17.9]} 28... f5 {[%clk 0:00:13.4]} 29. Qe8+
{[%clk 0:00:15]} 29... Kf6 {[%clk 0:00:13.7]} 30. Nd5+ {[%clk 0:00:10.3]} 30...
Nxd5 {[%clk 0:00:13.3]} 31. Qe6# {[%clk 0:00:10.6]} 1-0

[Event "*** Titled Tuesday Blitz"]
[Site "Chess.com"]
[Date "2020.04.28"]
[Round "9"]
[White "ChrisTool2"]
[Black "annamaja"]
[Result "0-1"]
[WhiteElo "2357"]
[BlackElo "2242"]
[TimeControl "180+1"]
[EndTime "11:46:00 PDT"]
[Termination "annamaja won by checkmate"]

1. d4 {[%clk 0:03:00.9]} 1... Nf6 {[%clk 0:02:59.3]} 2. c4 {[%clk 0:03:00.4]}
2... e6 {[%clk 0:02:59.7]} 3. Nf3 {[%clk 0:03:00.1]} 3... d5 {[%clk 0:02:59.4]}
4. Nc3 {[%clk 0:02:59.8]} 4... a6 {[%clk 0:02:59.5]} 5. cxd5 {[%clk 0:02:48.4]}
5... exd5 {[%clk 0:03:00.4]} 6. Bg5 {[%clk 0:02:46.9]} 6... Be7 {[%clk
0:02:58.7]} 7. e3 {[%clk 0:02:47]} 7... O-O {[%clk 0:02:58.4]} 8. Bd3 {[%clk
0:02:45.6]} 8... Be6 {[%clk 0:02:58.6]} 9. O-O {[%clk 0:02:43.9]} 9... Nbd7
{[%clk 0:02:58.9]} 10. Rc1 {[%clk 0:02:43.1]} 10... c6 {[%clk 0:02:57.6]} 11.
Ne2 {[%clk 0:02:40.6]} 11... Ne4 {[%clk 0:02:51.3]} 12. Bxe7 {[%clk 0:02:38.2]}
12... Qxe7 {[%clk 0:02:52.2]} 13. Bxe4 {[%clk 0:02:26.9]} 13... dxe4 {[%clk
0:02:53.1]} 14. Nd2 {[%clk 0:02:26.6]} 14... f5 {[%clk 0:02:39.9]} 15. Nf4
{[%clk 0:02:25.9]} 15... Nf6 {[%clk 0:02:38.4]} 16. Nxe6 {[%clk 0:02:23.2]}
16... Qxe6 {[%clk 0:02:39.3]} 17. Qb3 {[%clk 0:02:21.5]} 17... Nd5 {[%clk
0:02:35.5]} 18. Qxb7 {[%clk 0:02:17.8]} 18... Rfc8 {[%clk 0:02:22.9]} 19. Nc4
{[%clk 0:02:13.8]} 19... Rcb8 {[%clk 0:01:59.8]} 20. Na5 {[%clk 0:02:02.5]}
20... Rxb7 {[%clk 0:01:59.5]} 21. Nxb7 {[%clk 0:02:03.4]} 21... Rb8 {[%clk
0:01:57.8]} 22. Nc5 {[%clk 0:02:02.4]} 22... Qd6 {[%clk 0:01:55.2]} 23. b3
{[%clk 0:02:00.6]} 23... a5 {[%clk 0:01:52.9]} 24. Rc2 {[%clk 0:01:53.3]} 24...
Nb4 {[%clk 0:01:52]} 25. Rd2 {[%clk 0:01:52.2]} 25... Re8 {[%clk 0:01:42.6]} 26.
a3 {[%clk 0:01:49.1]} 26... Nd5 {[%clk 0:01:37.6]} 27. g3 {[%clk 0:01:45.5]}
27... g5 {[%clk 0:01:36.1]} 28. Kh1 {[%clk 0:01:32.9]} 28... f4 {[%clk
0:01:36.3]} 29. gxf4 {[%clk 0:01:30.4]} 29... gxf4 {[%clk 0:01:36.6]} 30. Rg1+
{[%clk 0:01:29.9]} 30... Kh8 {[%clk 0:01:37]} 31. Re2 {[%clk 0:00:56.5]} 31...
f3 {[%clk 0:01:13]} 32. Ree1 {[%clk 0:00:53.4]} 32... Nc3 {[%clk 0:01:10.3]} 33.
Rg4 {[%clk 0:00:46.7]} 33... h5 {[%clk 0:00:56.2]} 34. Rg5 {[%clk 0:00:43.6]}
34... Qh6 {[%clk 0:00:47.5]} 35. h4 {[%clk 0:00:32.3]} 35... Rg8 {[%clk
0:00:43.8]} 36. Reg1 {[%clk 0:00:27.7]} 36... Rxg5 {[%clk 0:00:43.3]} 37. Rxg5
{[%clk 0:00:28.6]} 37... Qf6 {[%clk 0:00:28.4]} 38. Nd7 {[%clk 0:00:25.1]} 38...
Qe6 {[%clk 0:00:24.5]} 39. Rxh5+ {[%clk 0:00:20.1]} 39... Kg7 {[%clk 0:00:22.5]}
40. Rg5+ {[%clk 0:00:21]} 40... Kh6 {[%clk 0:00:22.7]} 41. Ne5 {[%clk
0:00:20.2]} 41... Qh3+ {[%clk 0:00:22.5]} 42. Kg1 {[%clk 0:00:20.1]} 42... Ne2#
{[%clk 0:00:23.1]} 0-1

[Event "*** Titled Tuesday Blitz"]
[Site "Chess.com"]
[Date "2020.04.28"]
[Round "9"]
[White "Playgood28"]
[Black "DrVitman"]
[Result "1-0"]
[WhiteElo "2220"]
[BlackElo "2485"]
[TimeControl "180+1"]
[EndTime "11:46:03 PDT"]
[Termination "Playgood28 won on time"]

1. d4 {[%clk 0:03:00.9]} 1... Nf6 {[%clk 0:02:59.2]} 2. c4 {[%clk 0:03:00.2]}
2... g6 {[%clk 0:02:59]} 3. Nc3 {[%clk 0:02:59.9]} 3... d5 {[%clk 0:02:59]} 4.
e3 {[%clk 0:02:58.4]} 4... Bg7 {[%clk 0:02:57.9]} 5. Nf3 {[%clk 0:02:58.3]} 5...
O-O {[%clk 0:02:56.9]} 6. b4 {[%clk 0:02:58.7]} 6... Be6 {[%clk 0:02:35.8]} 7.
Ne5 {[%clk 0:02:53.4]} 7... Nbd7 {[%clk 0:02:28.1]} 8. f4 {[%clk 0:02:28.1]}
8... c6 {[%clk 0:02:06.5]} 9. Bb2 {[%clk 0:02:18.5]} 9... a5 {[%clk 0:01:42.7]}
10. a3 {[%clk 0:02:15.7]} 10... axb4 {[%clk 0:01:09.8]} 11. axb4 {[%clk
0:02:14.6]} 11... Qb6 {[%clk 0:00:59.6]} 12. Qb3 {[%clk 0:02:12.7]} 12... dxc4
{[%clk 0:00:57.6]} 13. Bxc4 {[%clk 0:02:08.3]} 13... Bxc4 {[%clk 0:00:45.3]} 14.
Nxc4 {[%clk 0:02:04.1]} 14... Qc7 {[%clk 0:00:40.7]} 15. O-O {[%clk 0:01:58.5]}
15... Nb6 {[%clk 0:00:31]} 16. h3 {[%clk 0:01:41.2]} 16... Nfd5 {[%clk
0:00:14.1]} 17. Nxd5 {[%clk 0:01:20.6]} 17... Nxd5 {[%clk 0:00:13.7]} 18. b5
{[%clk 0:01:11.1]} 18... cxb5 {[%clk 0:00:10.6]} 19. Qxb5 {[%clk 0:01:09.6]}
19... Rxa1 {[%clk 0:00:09.9]} 20. Rxa1 {[%clk 0:01:07.9]} 20... Rd8 {[%clk
0:00:07.9]} 21. Rc1 {[%clk 0:00:55.8]} 21... Qd7 {[%clk 0:00:04.9]} 22. Qxd7
{[%clk 0:00:47.1]} 22... Rxd7 {[%clk 0:00:05.8]} 23. Kf2 {[%clk 0:00:46.6]}
23... h6 {[%clk 0:00:05.6]} 24. Ra1 {[%clk 0:00:42.5]} 24... b5 {[%clk
0:00:05.3]} 25. Ne5 {[%clk 0:00:40.6]} 25... Bxe5 {[%clk 0:00:04.6]} 26. dxe5
{[%clk 0:00:31.3]} 26... Nb4 {[%clk 0:00:04]} 27. Ke2 {[%clk 0:00:28.7]} 27...
Nd3 {[%clk 0:00:02.9]} 28. Ra8+ {[%clk 0:00:20.9]} 28... Kg7 {[%clk 0:00:02.5]}
29. Bd4 {[%clk 0:00:18.8]} 29... Nb4 {[%clk 0:00:02.1]} 30. e6+ {[%clk
0:00:16.9]} 1-0

[Event "*** Titled Tuesday Blitz"]
[Site "Chess.com"]
[Date "2020.04.28"]
[Round "9"]
[White "Sibelephant"]
[Black "Gabix_94"]
[Result "1-0"]
[WhiteElo "3178"]
[BlackElo "2798"]
[TimeControl "180+1"]
[EndTime "11:46:04 PDT"]
[Termination "Sibelephant won by resignation"]

1. d4 {[%clk 0:03:00.1]} 1... Nf6 {[%clk 0:02:59.2]} 2. Nf3 {[%clk 0:03:00.4]}
2... g6 {[%clk 0:02:58.8]} 3. Bg5 {[%clk 0:03:00.4]} 3... Bg7 {[%clk 0:02:58.5]}
4. Nbd2 {[%clk 0:03:01]} 4... O-O {[%clk 0:02:52.2]} 5. e3 {[%clk 0:03:01.4]}
5... d5 {[%clk 0:02:46.2]} 6. Be2 {[%clk 0:03:01.4]} 6... Nbd7 {[%clk
0:02:46.1]} 7. O-O {[%clk 0:03:01.6]} 7... Re8 {[%clk 0:02:45.1]} 8. c4 {[%clk
0:03:02]} 8... h6 {[%clk 0:02:35.1]} 9. Bh4 {[%clk 0:03:01.5]} 9... e5 {[%clk
0:02:27.6]} 10. Rc1 {[%clk 0:02:47.8]} 10... e4 {[%clk 0:02:21.5]} 11. Ne1
{[%clk 0:02:47]} 11... c6 {[%clk 0:02:21.5]} 12. cxd5 {[%clk 0:02:46.9]} 12...
cxd5 {[%clk 0:02:20.6]} 13. Qb3 {[%clk 0:02:42.4]} 13... Re6 {[%clk 0:02:04.8]}
14. Bg3 {[%clk 0:02:10.6]} 14... Nf8 {[%clk 0:01:51]} 15. Qa3 {[%clk 0:01:54.8]}
15... g5 {[%clk 0:01:30.2]} 16. Nb1 {[%clk 0:01:27.3]} 16... Bd7 {[%clk
0:01:25.4]} 17. Nc3 {[%clk 0:01:26.4]} 17... Ng6 {[%clk 0:01:18.1]} 18. Nb5
{[%clk 0:01:19.3]} 18... Bxb5 {[%clk 0:01:16.5]} 19. Bxb5 {[%clk 0:01:19.4]}
19... a6 {[%clk 0:01:13.6]} 20. Be2 {[%clk 0:01:11.9]} 20... Bf8 {[%clk
0:01:08.8]} 21. Qa4 {[%clk 0:01:00]} 21... b5 {[%clk 0:01:03.5]} 22. Qd1 {[%clk
0:00:59.2]} 22... Bd6 {[%clk 0:01:01.6]} 23. Nc2 {[%clk 0:00:56]} 23... Kg7
{[%clk 0:00:50.4]} 24. Na1 {[%clk 0:00:55.4]} 24... Bxg3 {[%clk 0:00:47.5]} 25.
fxg3 {[%clk 0:00:55.1]} 25... Ne7 {[%clk 0:00:38.1]} 26. Nb3 {[%clk 0:00:55]}
26... Rc8 {[%clk 0:00:28.9]} 27. Rxc8 {[%clk 0:00:52]} 27... Qxc8 {[%clk
0:00:29.3]} 28. Nc5 {[%clk 0:00:51.8]} 28... Rc6 {[%clk 0:00:27.9]} 29. Qe1
{[%clk 0:00:45.9]} 29... Ne8 {[%clk 0:00:25.9]} 30. Bh5 {[%clk 0:00:42.7]} 30...
f5 {[%clk 0:00:20.5]} 31. Bxe8 {[%clk 0:00:41.3]} 31... Qxe8 {[%clk 0:00:21.4]}
32. g4 {[%clk 0:00:39.5]} 32... Rf6 {[%clk 0:00:17.5]} 33. Qg3 {[%clk
0:00:39.4]} 33... f4 {[%clk 0:00:16.5]} 34. exf4 {[%clk 0:00:39.1]} 34... Ng6
{[%clk 0:00:13.9]} 35. f5 {[%clk 0:00:36.8]} 35... Nf4 {[%clk 0:00:14.3]} 36.
Qe3 {[%clk 0:00:36.9]} 36... h5 {[%clk 0:00:09.9]} 37. h4 {[%clk 0:00:34]} 1-0

[Event "*** Titled Tuesday Blitz"]
[Site "Chess.com"]
[Date "2020.04.28"]
[Round "9"]
[White "AnonymusDonkey"]
[Black "Kavyev_Ruslan"]
[Result "0-1"]
[WhiteElo "2352"]
[BlackElo "2486"]
[TimeControl "180+1"]
[EndTime "11:46:09 PDT"]
[Termination "Kavyev_Ruslan won on time"]

1. e4 {[%clk 0:03:00.9]} 1... c5 {[%clk 0:02:59.1]} 2. Nf3 {[%clk 0:03:00.8]}
2... d6 {[%clk 0:02:58.6]} 3. d4 {[%clk 0:03:01.3]} 3... cxd4 {[%clk 0:02:59.5]}
4. Nxd4 {[%clk 0:03:02.2]} 4... Nf6 {[%clk 0:02:59.8]} 5. Nc3 {[%clk 0:03:02.7]}
5... a6 {[%clk 0:03:00.5]} 6. Bd3 {[%clk 0:03:03.2]} 6... e5 {[%clk 0:02:59.4]}
7. Nde2 {[%clk 0:03:03.3]} 7... Be7 {[%clk 0:02:58.6]} 8. O-O {[%clk 0:03:03.2]}
8... O-O {[%clk 0:02:58]} 9. Ng3 {[%clk 0:03:03.7]} 9... Re8 {[%clk 0:02:58.4]}
10. Re1 {[%clk 0:03:02.3]} 10... Nc6 {[%clk 0:02:58.3]} 11. Nd5 {[%clk
0:03:01.3]} 11... Be6 {[%clk 0:02:51.4]} 12. c4 {[%clk 0:02:59.9]} 12... Bxd5
{[%clk 0:02:40.3]} 13. exd5 {[%clk 0:03:00]} 13... Nb8 {[%clk 0:02:38.9]} 14.
Be3 {[%clk 0:02:44.5]} 14... Nbd7 {[%clk 0:02:38.4]} 15. b4 {[%clk 0:02:44.5]}
15... Bf8 {[%clk 0:02:35.6]} 16. Rc1 {[%clk 0:02:36.3]} 16... g6 {[%clk
0:02:34.1]} 17. Qb3 {[%clk 0:02:24.1]} 17... Rc8 {[%clk 0:02:33.4]} 18. f3
{[%clk 0:02:04.9]} 18... b6 {[%clk 0:02:33]} 19. a4 {[%clk 0:01:56.1]} 19... a5
{[%clk 0:02:32.4]} 20. c5 {[%clk 0:01:32.7]} 20... dxc5 {[%clk 0:02:23.7]} 21.
bxa5 {[%clk 0:01:32.3]} 21... bxa5 {[%clk 0:02:21]} 22. Bb5 {[%clk 0:01:32.5]}
22... Qb6 {[%clk 0:01:56.9]} 23. Bg5 {[%clk 0:01:17.1]} 23... Red8 {[%clk
0:01:50.7]} 24. Ne4 {[%clk 0:01:07.2]} 24... Be7 {[%clk 0:01:39.8]} 25. Qd1
{[%clk 0:00:55.9]} 25... Nf8 {[%clk 0:01:32.7]} 26. d6 {[%clk 0:00:50.3]} 26...
h6 {[%clk 0:01:28.4]} 27. Bxf6 {[%clk 0:00:34.1]} 27... Bxf6 {[%clk 0:01:26]}
28. Nxf6+ {[%clk 0:00:35]} 28... Kg7 {[%clk 0:01:26.9]} 29. Qe2 {[%clk
0:00:21.5]} 29... Qxd6 {[%clk 0:01:24]} 30. Ne4 {[%clk 0:00:15.3]} 30... Qd4+
{[%clk 0:01:23.9]} 31. Kh1 {[%clk 0:00:15.5]} 31... Qb4 {[%clk 0:01:13.2]} 32.
Nc3 {[%clk 0:00:13.5]} 32... f6 {[%clk 0:01:12.6]} 33. Na2 {[%clk 0:00:10.4]}
33... Qa3 {[%clk 0:01:10.5]} 34. Rcd1 {[%clk 0:00:10.3]} 34... Ne6 {[%clk
0:01:09.4]} 35. Bd7 {[%clk 0:00:08.7]} 35... Nd4 {[%clk 0:01:07.4]} 36. Rxd4
{[%clk 0:00:08.8]} 36... cxd4 {[%clk 0:01:07.6]} 37. Bxc8 {[%clk 0:00:09.3]}
37... Rxc8 {[%clk 0:01:08.5]} 38. Qe4 {[%clk 0:00:07]} 38... Rc7 {[%clk
0:01:04.7]} 39. Nc1 {[%clk 0:00:04.9]} 39... Qxc1 {[%clk 0:00:48.8]} 40. h4
{[%clk 0:00:01.6]} 40... Qf4 {[%clk 0:00:39.1]} 0-1

[Event "*** Titled Tuesday Blitz"]
[Site "Chess.com"]
[Date "2020.04.28"]
[Round "9"]
[White "Rafael_Ventura"]
[Black "I_Hit_18K_on_BS"]
[Result "0-1"]
[WhiteElo "2267"]
[BlackElo "2196"]
[TimeControl "180+1"]
[EndTime "11:46:09 PDT"]
[Termination "I_Hit_18K_on_BS won by resignation"]

1. e4 {[%clk 0:03:00.9]} 1... c5 {[%clk 0:03:00.4]} 2. c4 {[%clk 0:03:00.6]}
2... Nc6 {[%clk 0:02:58.1]} 3. Ne2 {[%clk 0:03:00.3]} 3... e5 {[%clk 0:02:52.3]}
4. Nbc3 {[%clk 0:02:59.5]} 4... g6 {[%clk 0:02:50.2]} 5. g3 {[%clk 0:02:59.3]}
5... Bg7 {[%clk 0:02:50.1]} 6. Bg2 {[%clk 0:03:00]} 6... Nge7 {[%clk 0:02:50.2]}
7. O-O {[%clk 0:03:00.9]} 7... O-O {[%clk 0:02:50.2]} 8. h3 {[%clk 0:03:01.6]}
8... a6 {[%clk 0:02:45.9]} 9. d3 {[%clk 0:02:59.7]} 9... Rb8 {[%clk 0:02:44.6]}
10. a4 {[%clk 0:02:58.8]} 10... d6 {[%clk 0:02:37.6]} 11. f4 {[%clk 0:02:57.8]}
11... exf4 {[%clk 0:02:21.2]} 12. Nxf4 {[%clk 0:02:55.6]} 12... Nd4 {[%clk
0:02:16.4]} 13. Nfd5 {[%clk 0:02:52.5]} 13... Nxd5 {[%clk 0:02:06.7]} 14. Nxd5
{[%clk 0:02:52.3]} 14... Be6 {[%clk 0:02:00.3]} 15. Nf4 {[%clk 0:02:48.1]} 15...
Qb6 {[%clk 0:01:53]} 16. a5 {[%clk 0:02:45.9]} 16... Qb3 {[%clk 0:01:48.7]} 17.
Ra3 {[%clk 0:02:43.6]} 17... Qxd1 {[%clk 0:01:37.7]} 18. Rxd1 {[%clk 0:02:44.5]}
18... Be5 {[%clk 0:01:35.8]} 19. Ra2 {[%clk 0:02:14.9]} 19... Bxf4 {[%clk
0:01:31.1]} 20. Bxf4 {[%clk 0:02:12.4]} 20... Ne2+ {[%clk 0:01:31]} 21. Kf2
{[%clk 0:02:13]} 21... Nxf4 {[%clk 0:01:30.6]} 22. gxf4 {[%clk 0:02:13.9]} 22...
f5 {[%clk 0:01:28.3]} 23. Ke3 {[%clk 0:02:14.4]} 23... fxe4 {[%clk 0:01:27.9]}
24. Bxe4 {[%clk 0:02:13.6]} 24... Bxh3 {[%clk 0:01:25.2]} 25. Bd5+ {[%clk
0:02:06.3]} 25... Kg7 {[%clk 0:01:23.5]} 26. b4 {[%clk 0:02:03.2]} 26... Rfe8+
{[%clk 0:01:18.7]} 27. Kd2 {[%clk 0:02:02.5]} 27... cxb4 {[%clk 0:01:13.9]} 28.
Rb2 {[%clk 0:02:01.8]} 28... Bg4 {[%clk 0:01:09]} 29. Re1 {[%clk 0:02:02.3]}
29... Rxe1 {[%clk 0:01:01.4]} 30. Kxe1 {[%clk 0:02:03.2]} 30... Re8+ {[%clk
0:01:01.2]} 31. Kf2 {[%clk 0:02:01.6]} 31... Bc8 {[%clk 0:00:52.3]} 32. Rxb4
{[%clk 0:02:00.9]} 32... Re7 {[%clk 0:00:52.2]} 33. Rb6 {[%clk 0:01:58.3]} 33...
Rd7 {[%clk 0:00:48.1]} 34. Be6 {[%clk 0:01:58.9]} 34... Rc7 {[%clk 0:00:47.3]}
35. Bxc8 {[%clk 0:01:59.2]} 35... Rxc8 {[%clk 0:00:48.2]} 36. Rxb7+ {[%clk
0:01:58.6]} 36... Kf6 {[%clk 0:00:45.8]} 37. Rb6 {[%clk 0:01:59.1]} 37... Kf5
{[%clk 0:00:45]} 38. Rxd6 {[%clk 0:01:59]} 38... Kxf4 {[%clk 0:00:41.5]} 39.
Rxa6 {[%clk 0:01:58.7]} 39... Rd8 {[%clk 0:00:41.6]} 40. Ke2 {[%clk 0:01:57.1]}
40... Re8+ {[%clk 0:00:38.7]} 41. Kd2 {[%clk 0:01:57.2]} 41... g5 {[%clk
0:00:37.2]} 42. Rh6 {[%clk 0:01:57]} 42... Re7 {[%clk 0:00:34.4]} 43. d4 {[%clk
0:01:52.8]} 43... g4 {[%clk 0:00:33.1]} 44. d5 {[%clk 0:01:50.8]} 44... Kf3
{[%clk 0:00:33.1]} 45. d6 {[%clk 0:01:50.3]} 45... Rd7 {[%clk 0:00:30.1]} 46. c5
{[%clk 0:01:50.8]} 46... g3 {[%clk 0:00:23.5]} 47. Rh5 {[%clk 0:01:51.2]} 47...
g2 {[%clk 0:00:20.6]} 48. Rg5 {[%clk 0:01:51.5]} 48... h6 {[%clk 0:00:19.8]} 49.
Rg6 {[%clk 0:01:49]} 49... h5 {[%clk 0:00:19.7]} 50. Kd3 {[%clk 0:01:49.4]}
50... h4 {[%clk 0:00:19.3]} 51. Kd4 {[%clk 0:01:50]} 51... h3 {[%clk 0:00:19.5]}
52. Kd5 {[%clk 0:01:50.7]} 52... h2 {[%clk 0:00:19.9]} 53. c6 {[%clk 0:01:51.3]}
53... g1=Q {[%clk 0:00:20]} 54. Rxg1 {[%clk 0:01:51]} 54... hxg1=Q {[%clk
0:00:20.9]} 55. cxd7 {[%clk 0:01:51.7]} 55... Qg8+ {[%clk 0:00:20.9]} 56. Kc6
{[%clk 0:01:51.9]} 56... Qd8 {[%clk 0:00:21]} 57. a6 {[%clk 0:01:51.7]} 57...
Ke4 {[%clk 0:00:21.1]} 58. a7 {[%clk 0:01:51.9]} 58... Ke5 {[%clk 0:00:21.3]}
59. a8=Q {[%clk 0:01:47]} 59... Qxa8+ {[%clk 0:00:20.8]} 60. Kc7 {[%clk
0:01:47.6]} 60... Qa7+ {[%clk 0:00:21]} 61. Kc8 {[%clk 0:01:48]} 61... Qa6+
{[%clk 0:00:19.8]} 62. Kc7 {[%clk 0:01:48.2]} 62... Qc4+ {[%clk 0:00:19.7]} 63.
Kb8 {[%clk 0:01:46.5]} 63... Qb4+ {[%clk 0:00:19.9]} 64. Kc8 {[%clk 0:01:45.7]}
64... Qc5+ {[%clk 0:00:12.5]} 65. Kb7 {[%clk 0:01:31.4]} 65... Qxd6 {[%clk
0:00:11.7]} 66. Kc8 {[%clk 0:01:32.1]} 66... Qc6+ {[%clk 0:00:11.6]} 67. Kd8
{[%clk 0:01:32.7]} 67... Ke6 {[%clk 0:00:09.7]} 0-1

[Event "*** Titled Tuesday Blitz"]
[Site "Chess.com"]
[Date "2020.04.28"]
[Round "9"]
[White "stasiek18"]
[Black "Larina_Marija"]
[Result "0-1"]
[WhiteElo "2316"]
[BlackElo "2188"]
[TimeControl "180+1"]
[EndTime "11:46:10 PDT"]
[Termination "Larina_Marija won on time"]

1. e4 {[%clk 0:03:00.9]} 1... d5 {[%clk 0:02:28.5]} 2. exd5 {[%clk 0:02:57.6]}
2... Qxd5 {[%clk 0:02:28.7]} 3. Nc3 {[%clk 0:02:56.5]} 3... Qa5 {[%clk
0:02:28.7]} 4. d4 {[%clk 0:02:55.7]} 4... Nf6 {[%clk 0:02:28.5]} 5. Bc4 {[%clk
0:02:50.4]} 5... Bf5 {[%clk 0:02:27.5]} 6. Ne2 {[%clk 0:02:45.5]} 6... e6 {[%clk
0:02:25.2]} 7. O-O {[%clk 0:02:44]} 7... c6 {[%clk 0:02:23.1]} 8. Ng3 {[%clk
0:02:36.3]} 8... Bg6 {[%clk 0:02:23.2]} 9. f4 {[%clk 0:02:36.2]} 9... Be7 {[%clk
0:02:17.1]} 10. f5 {[%clk 0:02:31.5]} 10... exf5 {[%clk 0:02:08.1]} 11. Qe2
{[%clk 0:02:31]} 11... Qc7 {[%clk 0:02:01.7]} 12. Bf4 {[%clk 0:02:28.8]} 12...
Qd7 {[%clk 0:02:00.2]} 13. Rae1 {[%clk 0:02:24.8]} 13... Ne4 {[%clk 0:01:40.6]}
14. Ncxe4 {[%clk 0:02:03.4]} 14... fxe4 {[%clk 0:01:35.6]} 15. c3 {[%clk
0:02:02.3]} 15... O-O {[%clk 0:01:17.2]} 16. Nxe4 {[%clk 0:02:00.4]} 16... Na6
{[%clk 0:00:52.8]} 17. Bxa6 {[%clk 0:01:45.6]} 17... bxa6 {[%clk 0:00:53.7]} 18.
Qxa6 {[%clk 0:01:38]} 18... Qd5 {[%clk 0:00:53.4]} 19. Ng3 {[%clk 0:01:21.6]}
19... Bf6 {[%clk 0:00:46.3]} 20. Be5 {[%clk 0:01:03.8]} 20... Bg5 {[%clk
0:00:46.1]} 21. Qa3 {[%clk 0:00:48.1]} 21... Rfe8 {[%clk 0:00:44.3]} 22. Qd6
{[%clk 0:00:27.6]} 22... Qxa2 {[%clk 0:00:38]} 23. Qxc6 {[%clk 0:00:16.7]} 23...
Qxb2 {[%clk 0:00:37.8]} 24. c4 {[%clk 0:00:11.5]} 24... Rec8 {[%clk 0:00:32.6]}
25. Qf3 {[%clk 0:00:07.6]} 25... a5 {[%clk 0:00:28.1]} 26. c5 {[%clk 0:00:07.6]}
26... f6 {[%clk 0:00:17.3]} 27. Bf4 {[%clk 0:00:03.3]} 27... Qxd4+ {[%clk
0:00:16.8]} 28. Be3 {[%clk 0:00:02.2]} 28... Bxe3+ {[%clk 0:00:16.2]} 29. Rxe3
{[%clk 0:00:02.1]} 29... Qxc5 {[%clk 0:00:14.7]} 30. Kh1 {[%clk 0:00:02]} 30...
a4 {[%clk 0:00:14.4]} 0-1

[Event "*** Titled Tuesday Blitz"]
[Site "Chess.com"]
[Date "2020.04.28"]
[Round "9"]
[White "hongnhung1234"]
[Black "jucAxx"]
[Result "0-1"]
[WhiteElo "2202"]
[BlackElo "2127"]
[TimeControl "180+1"]
[EndTime "11:46:14 PDT"]
[Termination "jucAxx won by checkmate"]

1. e4 {[%clk 0:03:00.9]} 1... e6 {[%clk 0:02:59]} 2. d4 {[%clk 0:03:00]} 2... d5
{[%clk 0:02:58.9]} 3. Nc3 {[%clk 0:03:00.3]} 3... Bb4 {[%clk 0:02:57.5]} 4. e5
{[%clk 0:02:56.9]} 4... c5 {[%clk 0:02:54.3]} 5. a3 {[%clk 0:02:57]} 5... Bxc3+
{[%clk 0:02:54.6]} 6. bxc3 {[%clk 0:02:57.9]} 6... Qc7 {[%clk 0:02:54.6]} 7. Qg4
{[%clk 0:02:56.1]} 7... Ne7 {[%clk 0:02:54.4]} 8. Qxg7 {[%clk 0:02:55.4]} 8...
Rg8 {[%clk 0:02:54.1]} 9. Qxh7 {[%clk 0:02:55.8]} 9... cxd4 {[%clk 0:02:53.8]}
10. Ne2 {[%clk 0:02:55.9]} 10... Nbc6 {[%clk 0:02:53.4]} 11. f4 {[%clk
0:02:54.4]} 11... Bd7 {[%clk 0:02:47.1]} 12. Qd3 {[%clk 0:02:54.6]} 12... dxc3
{[%clk 0:01:57.9]} 13. Qxc3 {[%clk 0:02:55.5]} 13... O-O-O {[%clk 0:01:56]} 14.
Rb1 {[%clk 0:02:53.9]} 14... d4 {[%clk 0:01:54]} 15. Qd3 {[%clk 0:02:53.3]}
15... Nf5 {[%clk 0:01:51.4]} 16. Rg1 {[%clk 0:02:51]} 16... Be8 {[%clk
0:01:49.2]} 17. g4 {[%clk 0:02:50.8]} 17... Nh4 {[%clk 0:01:48.1]} 18. Kf2
{[%clk 0:02:45.6]} 18... Ne7 {[%clk 0:01:45.8]} 19. Rg3 {[%clk 0:02:43.4]} 19...
Qc5 {[%clk 0:01:43.7]} 20. Kg1 {[%clk 0:02:37.1]} 20... Bc6 {[%clk 0:01:41.3]}
21. a4 {[%clk 0:02:29.6]} 21... Qd5 {[%clk 0:01:35.9]} 22. Kf2 {[%clk
0:02:16.9]} 22... Qh1 {[%clk 0:01:35.7]} 23. Ba3 {[%clk 0:01:51.4]} 23... Nd5
{[%clk 0:01:25.8]} 24. Bc5 {[%clk 0:01:00]} 24... Ne3 {[%clk 0:01:11.4]} 25.
Bxd4 {[%clk 0:00:49.2]} 25... Nxg4+ {[%clk 0:01:09.1]} 26. Ke1 {[%clk
0:00:43.7]} 26... Nxh2 {[%clk 0:01:06.7]} 27. Rxg8 {[%clk 0:00:22.8]} 27... Rxg8
{[%clk 0:00:55.3]} 28. Ng3 {[%clk 0:00:19.2]} 28... N4f3+ {[%clk 0:00:46.1]} 29.
Ke2 {[%clk 0:00:19.3]} 29... Rxg3 {[%clk 0:00:43.3]} 30. Bf2 {[%clk 0:00:15.1]}
30... Ng1+ {[%clk 0:00:30.9]} 31. Kd2 {[%clk 0:00:13.2]} 31... Rxd3+ {[%clk
0:00:30.9]} 32. Bxd3 {[%clk 0:00:12.9]} 32... Ngf3+ {[%clk 0:00:29.2]} 33. Kc3
{[%clk 0:00:11.3]} 33... Qxb1 {[%clk 0:00:28.8]} 34. Bxa7 {[%clk 0:00:11.5]}
34... Qa1+ {[%clk 0:00:26.2]} 35. Kb4 {[%clk 0:00:10.1]} 35... Qxa4+ {[%clk
0:00:26.4]} 36. Kc5 {[%clk 0:00:09.7]} 36... Qxa7+ {[%clk 0:00:23.8]} 37. Kd6
{[%clk 0:00:09.5]} 37... Qa3# {[%clk 0:00:23.3]} 0-1